{"text_format":"3","workbook":"xlsx","n_sheets":1,"sheets":["тестовый"],"not_rendered":{"defined_names":1},"read":"whole","date_system":"1900"}

{"sheet":"тестовый","index":0,"n_rows":111,"n_cols":9,"rows_kept":111,"merged":[[0,0,0,8]]}
["Протокол по итогам муниципального этапа ВсОШ по предмету \"татарский язык для учащихся школ с родным языком обучения\"  Сармановского  муниципального района в 2019-2020 учебном году "]
["№ п/п","Муниципалитет","Полное наименование образовательного учреждения (по уставу)","Фамилия","Класс","Балл","Апеляционный балл","Итоговый балл","Максимальный балл"]
[1,"Сармановский","МБОУ\"Сармановская гимназия\"","Миннугулова ",5,36,null,null,57]
[2,"Сармановский","МБОУ \"Большенуркеевская СОШ\" ","Махубрахманов",5,35,null,null,57]
[3,"Сармановский","МБОУ\"Сармановская гимназия\"","Юнусова",5,39,null,null,57]
[4,"Сармановский","МБОУ\"Сармановская гимназия\"","Брызгалов ",5,47,null,null,57]
[5,"Сармановский","МБОУ \"Кавзияковская ООШ\"","Сахбетдинова",6,38.5,null,{"$f":"G7+F7","v":38.5},62]
[6,"Сармановский","МБОУ\"Сармановская гимназия\"","Ихсанова ",6,44,null,{"$f":"G8+F8","v":44},62]
[7,"Сармановский","МБОУ\"Сармановская гимназия\"","Шайгаллямова ",6,55,null,55,62]
[31,"Сармановский"," \"Муртыш-Тамакская основная общеобразовательная школа\"","Хусаинова",7,39,null,{"$f":"G10+F10","v":39},59]
[8,"Сармановский"," \"Старокаширская общеобразовательная школа\"","Сайфуллин",7,37.5,null,{"$f":"G11+F11","v":37.5},59]
[10,"Сармановский","МБОУ\"Сармановская гимназия\"","Галиуллина ",7,37.5,null,{"$f":"G12+F12","v":37.5},59]
[11,"Сармановский","МБОУ\"Сармановская гимназия\"","Сагитова",8,41,null,null,66]
[12,"Сармановский","МБОУ\"Сармановская гимназия\"","Рашитова",8,38,null,null,66]
[13,"Сармановский","\"Лякинская ООШ\" ","Аксакова",8,37,null,null,66]
[14,"Сармановский"," «Сармановская средняя общеобразовательная школа»","Хатипова",9,35,null,null,70]
[15,"Сармановский"," \"Старокаширская общеобразовательная школа\"филиал \"Сарайлинская ООШ\"","Хабибуллина",9,34.5,null,null,70]
[16,"Сармановский"," «Сармановская средняя общеобразовательная школа»","Ибрагимова",9,31.5,null,null,70]
[17,"Сармановский","МБОУ \"Большенуркеевская СОШ\"","Хайруллина",10,23.5,null,null,68]
[18,"Сармановский","МБОУ\"Сармановская гимназия\"","Ахметзянова",10,31.5,null,null,68]
[19,"Сармановский"," «Сармановская средняя общеобразовательная школа»","Сабирова",10,42,null,null,68]
[20,"Сармановский","МБОУ\"Сармановская гимназия\"","Мавлавиева",10,50.5,null,null,68]
[21,"Сармановский","МБОУ\"Сармановская гимназия\"","Гарипова",11,65.5,null,null,77]
[22,"Сармановский","МБОУ \"Большенуркеевская СОШ\" ","Хамидуллина",11,45,null,null,77]
[23,"Сармановский","МБОУ \"Сармановская гимназия\"","Шарафетдинов ",4,49.5,null,{"$f":"G25+F25","v":49.5},57]
[24,"Сармановский"," «Сармановская средняя общеобразовательная школа»","Низамов",4,40.5,null,{"$f":"G26+F26","v":40.5},57]
[46,"Сармановский","МБОУ \"Сармановская гимназия\"","Алексеева",4,34.5,3.5,{"$f":"G27+F27","v":38},57]
[25,"Сармановский","МБОУ\"Сармановская гимназия\"","Хакимуллина",4,37,null,{"$f":"G28+F28","v":37},57]
[26,"Сармановский","МБОУ «Альметьевская основная общеобразовательная школа» ","Мингазова",4,36.5,null,{"$f":"G29+F29","v":36.5},57]
[28,"Сармановский","МБОУ\"Сармановская гимназия\"","Валиева ",5,38,null,null,57]
[29,"Сармановский","МБОУ «Альметьевская основная общеобразовательная школа»","Хуснимухаметова",5,26.5,null,null,57]
[30,"Сармановский","\"Карашай-Сакловская ООШ\"","Фахразиева",6,51,null,{"$f":"G32+F32","v":51},62]
[54,"Сармановский","МБОУ\"Сармановская гимназия\"","Хуснетдинова",7,34.5,null,{"$f":"G33+F33","v":34.5},59]
[32,"Сармановский"," «Сармановская средняя общеобразовательная школа»","Валиахметова",8,36,null,null,66]
[33,"Сармановский"," \"Старокаширская общеобразовательная школа\"","Миннегулов",9,30.5,null,null,70]
[34,"Сармановский","МБОУ \"Кавзияковская ООШ\"","Мухаметзянова",9,30.5,null,null,70]
[27,"Сармановский"," \"Карашай-Сакловская ООШ\"","Сафина",4,36.5,null,{"$f":"G37+F37","v":36.5},57]
[35,"Сармановский"," \"Муртыш-Тамакская основная общеобразовательная школа\"","Гиниатуллина",4,36,null,{"$f":"G38+F38","v":36},57]
[37,"Сармановский"," «Сармановская средняя общеобразовательная школа»","Мусина",5,35,null,null,57]
[38,"Сармановский","МБОУ\"Сармановская гимназия\"","Ханипов",6,51.5,null,{"$f":"G40+F40","v":51.5},62]
[9,"Сармановский","МБОУ \"Кавзияковская ООШ\"","Фатихова",7,31,null,{"$f":"G41+F41","v":31},59]
[40,"Сармановский","\"Азалаковская основная общеобразовательная школа\"","Габдулгазизова",9,30,null,null,70]
[41,"Сармановский","МБОУ «Альметьевская основная общеобразовательная школа» ","Ибрагимова",5,24.5,null,null,57]
[42,"Сармановский","МБОУ «Альметьевская основная общеобразовательная школа» ","Зарипова",6,34.5,null,{"$f":"G44+F44","v":34.5},62]
[43,"Сармановский","МБОУ «Альметьевская основная общеобразовательная школа» ","Насибуллина",7,30,null,{"$f":"G45+F45","v":30},59]
[36,"Сармановский"," «Сармановская средняя общеобразовательная школа»","Галиева",4,35.5,null,{"$f":"G46+F46","v":35.5},57]
[45,"Сармановский","МБОУ\"Сармановская гимназия\"","Ситдикова",9,29,null,null,70]
[44,"Сармановский"," \"Старокаширская общеобразовательная школа\"","Ахметбаева ",4,35,null,{"$f":"G48+F48","v":35},57]
[47,"Сармановский","МБОУ\"Сармановская гимназия\"","Шакирова",4,32,null,{"$f":"G49+F49","v":32},57]
[48,"Сармановский"," «Сармановская средняя общеобразовательная школа»","Абулханова",5,36.5,null,null,57]
[49,"Сармановский","\"Муртыш-Тамакская основная общеобразовательная школа\"","Газизова",5,35,null,null,57]
[50,"Сармановский"," «Сармановская средняя общеобразовательная школа»","Сабирова",6,50.5,1,{"$f":"G52+F52","v":51.5},62]
[51,"Сармановский"," «Сармановская средняя общеобразовательная школа»","Аюпова",6,41.5,null,{"$f":"G53+F53","v":41.5},62]
[52,"Сармановский"," \"Старокаширская общеобразовательная школа\"","Зиннурова ",6,27.5,null,{"$f":"G54+F54","v":27.5},62]
[53,"Сармановский","МБОУ\"Сармановская гимназия\"","Латипова ",8,35.5,null,null,66]
[39,"Сармановский"," \"Азалаковская основная общеобразовательная школа\" ","Хамидуллина",7,28.5,null,{"$f":"G56+F56","v":28.5},59]
[80,"Сармановский","МБОУ \"Саклов-Башская СОШ\"","Габидуллина",7,28,null,{"$f":"G57+F57","v":28},59]
[56,"Сармановский","МБОУ \"Кавзияковская ООШ\"","Исламова",8,34.5,null,null,66]
[57,"Сармановский"," «Сармановская средняя общеобразовательная школа»","Хафизова",8,30,null,null,66]
[58,"Сармановский","МБОУ «Альметьевская основная общеобразовательная школа» ","Тимербаева",8,29,null,null,66]
[59,"Сармановский"," \"Старомензелябашская ООШ имени А.Тимергалина\"","Калимуллина",9,28.5,null,null,70]
[60,"Сармановский","МБОУ \"Большенуркеевская СОШ\"","Мухаметова",9,23,null,null,70]
[61,"Сармановский","МБОУ \"Иляксазская ООШ\"","Салахова",9,21,null,null,70]
[62,"Сармановский","МБОУ\"Сармановская гимназия\"","Нагимова",9,19.5,null,null,70]
[63,"Сармановский","МБОУ\"Сармановская гимназия\"","Хуснутдинов",10,52.5,null,null,68]
[64,"Сармановский","МБОУ\"Сармановская гимназия\"","Сагдатова",10,26.5,null,null,68]
[65,"Сармановский","МБОУ\"Сармановская гимназия\"","Набиуллина",11,69.5,null,null,77]
[66,"Сармановский"," «Сармановская средняя общеобразовательная школа»","Валиева",11,44.5,null,null,77]
[67,"Сармановский"," «Сармановская средняя общеобразовательная школа»","Валиева",11,33.5,null,null,77]
[68,"Сармановский","филиал МБОУ \"Большенуркеевская СОШ\" Сармановского МР РТ- Юлтимеровская ООШ","Шамсетдинова ",5,23,null,null,57]
[69,"Сармановский"," «Сармановская средняя общеобразовательная школа»","Алчинова",6,34,null,{"$f":"G71+F71","v":34},62]
[70,"Сармановский"," «Сармановская средняя общеобразовательная школа»","Низамова",7,26.5,null,{"$f":"G72+F72","v":26.5},59]
[71,"Сармановский","«Сармановская средняя общеобразовательная школа»","Газизова",9,17.5,null,null,70]
[72,"Сармановский"," \"Сарайлинская ООШ\"","Калимуллина",8,28,null,null,66]
[73,"Сармановский","МБОУ «Альметьевская основная общеобразовательная школа» ","Шакирова",9,17,null,null,70]
[74,null," «Сармановская средняя общеобразовательная школа»","Киямов",4,31,null,{"$f":"G76+F76","v":31},57]
[75,"Сармановский"," \"Лякинская ООШ\" ","Шакирова",4,31,null,{"$f":"G77+F77","v":31},57]
[76,"Сармановский","МБОУ \"Кавзияковская ООШ\"","Халиуллина",4,28.5,null,{"$f":"G78+F78","v":28.5},57]
[77,"Сармановский"," \"Азалаковская основная общеобразовательная школа\" ","Габдулгазизова",5,25,null,null,57]
[78,"Сармановский"," МБОУ \"Лешев-Тамакская ООШ\"","Кучербанев",4,27.5,null,{"$f":"G80+F80","v":27.5},57]
[79,"Сармановский"," \"Муртыш-Тамакская основная общеобразовательная школа\"","Шигапова",6,36,null,{"$f":"G81+F81","v":36},62]
[55,"Сармановский"," \"Лякинская ООШ\" ","Терентьева",7,25.5,null,{"$f":"G82+F82","v":25.5},59]
[81,"Сармановский","МБОУ \"Иляксазская ООШ\"","Агелтдинова",8,22,null,null,66]
[82,"Сармановский","МБОУ\"Сармановская гимназия\"","Хасаншина",9,16,null,null,70]
[83,"Сармановский","\"Каташ-Каранская общеобразовательная школа\"","Мухаметдинов",8,21,null,null,66]
[84,"Сармановский","МБОУ \"Большенуркеевская СОШ\" ","Харрасов",4,27.5,null,{"$f":"G86+F86","v":27.5},57]
[85,"Сармановский","\"Сарайлинская ООШ\"","Фазлыев ",4,27,null,{"$f":"G87+F87","v":27},57]
[86,"Сармановский"," МБОУ \"Лешев-Тамакская ООШ\"","Нуриева",5,30.5,null,null,57]
[99,"Сармановский"," «Сармановская средняя общеобразовательная школа»","Мугинова",7,25,null,{"$f":"G89+F89","v":25},59]
[88,"Сармановский"," «Сармановская средняя общеобразовательная школа»","Исмагилова",10,13.5,null,null,68]
[89,"Сармановский","МБОУ\"Сармановская гимназия\"","Шамсемухаметова",4,26.5,null,{"$f":"G91+F91","v":26.5},57]
[90,"Сармановский"," «Кутемелинская основная общеобразовательная школа» ","Султанова",5,25.5,null,null,57]
[87,"Сармановский"," «Сармановская средняя общеобразовательная школа»","Хазиева",7,22.5,null,{"$f":"G93+F93","v":22.5},59]
[92,"Сармановский","МБОУ \"Саклов-Башская СОШ\"","Файзрахманова",6,42,null,{"$f":"G94+F94","v":42},62]
[93,"Сармановский","МБОУ \"Саклов-Башская СОШ\"","Миннуллин",6,46.5,null,{"$f":"G95+F95","v":46.5},62]
[94,"Сармановский"," «Сармановская средняя общеобразовательная школа»","Миннеахметова",11,17.5,null,null,77]
[95,"Сармановский","МБОУ \"Саклов-Башская СОШ\"","Нурияхметова",10,5,null,null,68]
[96,"Сармановский"," «Сармановская средняя общеобразовательная школа»","Шарафутдинова",9,16,null,null,70]
[97,"Сармановский","МБОУ \"Иляксазская ООШ\"","Султанова",9,15,null,null,70]
[98,"Сармановский"," \"Старокаширская общеобразовательная школа\"","Рамазанова",11,30,null,null,77]
[91,"Сармановский"," \"Старокаширская общеобразовательная школа\"филиал \"Сарайлинская ООШ\"","Газизова ",7,22.5,null,{"$f":"G101+F101","v":22.5},59]
[100,"Сармановский"," \"Старокаширская общеобразовательная школа\"филиал \"Сарайлинская ООШ\"","Шайдуллина",7,17,null,17,59]
[101,"Сармановский","МБОУ «Альметьевская основная общеобразовательная школа» ","Михайлова",7,15,null,15,59]
[102,"Сармановский","МБОУ «Альметьевская основная общеобразовательная школа» ","Хаков",4,26.5,null,26.5,57]
[103,"Сармановский"," \"Сарайлинская ООШ\"","Абдуллаева ",4,24.5,null,24.5,57]
[104,"Сармановский","МБОУ\"Сармановская гимназия\"","Салахтдинова",4,22.5,null,22.5,57]
[105,"Сармановский"," \"Сарайлинская ООШ\"","Бадретдинов ",6,41.5,null,41.5,62]
[106,"Сармановский"," \"Сарайлинская ООШ\"","Нигматуллина ",6,41,null,41,62]
[107,"Сармановский"," \"Азалаковская основная общеобразовательная школа\" ","Тазиева",6,35.5,null,35.5,62]
[108,"Сармановский","МБОУ \"Большенуркеевская СОШ\" ","Гатиятуллина",8,20,null,null,66]
[109,"Сармановский"," \"Старомензелябашская ООШ имени А. Тимергалина\"","Иждавлетова",4,20,null,{"$f":"G111+F111","v":20},57]